Cogmind - Beta 15 @@@ ROGUE MODE // 2025.07.12 @ 20:46:35 Player: KN-OKO Result: Destroyed by ZN-L43(R) with Subdweller Machine Gun Performance ------------- Evolutions (0) 0 Regions Visited (2) 400 Robots Destroyed (31) 155 Value Destroyed (688) 688 Prototype IDs (2) 40 Alien Tech Used (0) 0 Bonus (0) 0 TOTAL SCORE: 1283 Bonus ------- None Cogmind --------- Core Integrity 0/250 Matter 108/300 Energy 135/200 System Corruption 0% Temperature Cool (0) Movement Treading (160) Location -10/Subcaves Parts ------- > --- POWER (1) -------- Subdweller Power Source > --- PROPULSION (2) --- Light Treads Light Treads > --- UTILITY (2) ------ Small Storage Unit Propulsion Shielding > --- WEAPON (2) ------- Subdweller Laser Barrage Gun > --- INVENTORY (8) ---- Spiked Treads Seismic Detector Assault Rifle Light Assault Rifle Subdweller Machine Gun Subdweller Machine Gun Grenade Launcher Hammer Peak State ------------ > --- POWER ------------ Subdweller Power Source > --- PROPULSION ------- Light Treads Light Treads > --- UTILITY ---------- Small Storage Unit Propulsion Shielding > --- WEAPON ----------- Subdweller Machine Gun Barrage Gun > --- INVENTORY -------- Spiked Treads Seismic Detector Subdweller Laser Light Assault Rifle Subdweller Machine Gun Grenade Launcher Hammer [Rating: 12] Favorites ----------- Power Subdweller Power Source Engine Subdweller Power Source Propulsion Light Treads Treads Light Treads Utility Small Storage Unit Device Seismic Detector Storage Small Storage Unit Protection Light Armor Plating Weapon Assault Rifle Energy Gun Small Laser Ballistic Gun Assault Rifle Launcher Grenade Launcher Build | -11 -10 -10 ------- Run | Yrd Mat Sub Slots Evolved . | . . . Power . | . . . Propulsion . | . . . Utility . | . . . Weapon . | . . . Parts Attached 21 | 7 4 10 Power 3 | 1 1 1 Engine 3 | 1 1 1 Core . | . . . Reactor . | . . . Propulsion 5 | 2 . 3 Treads 5 | 2 . 3 Leg . | . . . Wheel . | . . . Hover . | . . . Flight . | . . . Utility 4 | 2 . 2 Device 1 | 1 . . Storage 1 | 1 . . Processor . | . . . Hackware . | . . . Protection 2 | . . 2 Artifact . | . . . Weapon 9 | 2 3 4 Energy Gun 2 | 1 . 1 Energy Cannon . | . . . Ballistic Gun 6 | 1 2 3 Ballistic Cannon . | . . . Launcher 1 | . 1 . Special Weapon . | . . . Impact Weapon . | . . . Slashing Weapon . | . . . Piercing Weapon . | . . . Special Melee Weapon . | . . . Unidentified Prototypes . | . . . Parts Lost 6 | . . 6 Power 1 | . . 1 Propulsion 3 | . . 3 Utility 1 | . . 1 Weapon 1 | . . 1 Highest Loss Streak 3 | . . 3 To Critical Strikes 1 | . . 1 Average Backups 7 | 4 7 7 Power . | . . . Propulsion 2 | 2 2 1 Utility 1 | . 1 1 Weapon 3 | . 2 4 Tool/Special . | . . . Unused Backups 12 | . 7 5 Power . | . . . Propulsion 5 | . 4 1 Utility . | . . . Weapon 7 | . 3 4 Tool/Special . | . . . Average Slot Usage (%) 99 | . 100 99 Engine 13 | . 14 13 Treads 28 | . 28 28 Device 11 | . 14 9 Storage 14 | . 14 14 Protection 2 | . . 4 Energy Gun 4 | . 7 1 Ballistic Gun 23 | . 20 26 Peak Build Rating 12 | 7 7 12 Average Rating 8 | 5 6 9 On Entrance 4 | . 7 7 Naked Turns . | . . . Heaviest Build 19 | 12 14 19 Greatest Support 40 | 40 40 40 Greatest Overweight (x) . | . . . Average Overweight (x) . | . . . Largest Inventory Capacity 8 | 8 8 8 Average Capacity 7 | 7 8 8 Most Carried 8 | 6 8 8 Average Carried 7 | 4 7 7 Final Capacity 8 | 8 8 8 Final Carried 8 | 6 8 8 Class Distribution -------------------- 66% | Mutant 33% | Scavenger-Mutant Dominant Class ---------------- Mutant | -10/Materials Scavenger-Mutant | -10/Subcaves Resources | -11 -10 -10 ----------- Run | Yrd Mat Sub Matter Collected 783 | 276 152 355 Remotely . | . . . Salvage Created 890 | 46 524 320 Parts 65 | 9 30 26 Haulers Intercepted 2 | . 2 . Recyclers Shooed . | . . . Parts Field Recycled . | . . . Retrieved Matter . | . . . Parts Self-Destructed 7 | . . 7 Prevented . | . . . Kills | -11 -10 -10 ------- Run | Yrd Mat Sub Combat Hostiles Destroyed 23 | . 11 12 Guns 16 | . 8 8 AOE 7 | . 3 4 Classes Destroyed 8 | 1 5 2 Worker 1 | . 1 . Tunneler 2 | 2 . . Hauler 2 | . 2 . Recycler 1 | . 1 . Turret 2 | . . 2 Swarmer 10 | . 6 4 Grunt 5 | . 5 . Subdweller 8 | . . 8 Best Kill Streak 6 | 2 4 6 Combat Bots Only 4 | . 3 4 Max Kills in Single Turn 4 | 1 4 3 Gunslinging . | . . . Exploded 3 | . 3 3 Melee . | . . . Uniques/NPCs Destroyed . | . . . Combat | -11 -10 -10 -------- Run | Yrd Mat Sub Hostile Shots Fired 161 | . 28 133 Missed 65 | . 13 52 Hits 96 | . 15 81 Projectile 96 | . 15 81 Critical Strikes 2 | . 1 1 Damage Taken 1377 | . 155 1222 Core 254 | . 20 234 Absorbed by Shields . | . . . Redirected to Shielding 39 | . . 39 Core Remaining (%) 100 | 100 . . Volleys Fired 108 | 2 29 77 Largest 2 | 2 2 2 Hottest 88 | 60 60 88 Shots Fired 178 | 4 55 119 Gun 165 | 4 54 107 Cannon . | . . . Launcher 13 | . 1 12 Special . | . . . Kinetic 134 | 2 36 96 Thermal 31 | 2 18 11 Explosive 13 | . 1 12 Electromagnetic . | . . . Robot Hit Streak 23 | 1 8 23 Robot Miss Streak 3 | 1 3 1 Penetration Max . | . . . Secondary Targets 1 | . . 1 Max Gunslinging Chain 1 | . . 1 Shots Hit Robots 118 | 2 35 81 Core Hits 61 | 2 24 35 Critical Kills . | . . . Critical Parts Destroyed 1 | . 1 . Critical Strikes 2 | . 1 1 Destroy 2 | . 1 1 Melee Attacks . | . . . Impact . | . . . Slashing . | . . . Piercing . | . . . Sneak Attacks . | . . . Combat Hostiles . | . . . Follow-up Attacks . | . . . Damage Inflicted 2048 | 21 543 1484 Guns 1523 | 21 397 1105 Cannons . | . . . Explosions 523 | . 144 379 Melee . | . . . Ramming 2 | . 2 . Kinetic 1269 | 11 268 990 Thermal 254 | 10 129 115 Explosive 523 | . 144 379 Electromagnetic . | . . . Impact . | . . . Slashing . | . . . Piercing . | . . . Highest Corruption . | . . . Average Corruption . | . . . Corruption Purged . | . . . Corruption Blocked . | . . . Overload Shots . | . . . Overflow Damage 4 | . . 4 Projectiles . | . . . Explosions 4 | . . 4 Melee . | . . . Knockbacks . | . . . Impact . | . . . Kinetic . | . . . Secondary . | . . . Self-Inflicted Damage 13 | . . 13 Shots 1 | . . 1 Rammed 5 | 1 4 . Targets Rammed 5 | 1 4 . Kicked . | . . . Crushed . | . . . Highest Temperature 33 | . 33 5 Average Temperature 23 | . 26 4 Received Heat Transfer 315 | . 63 252 Siege Activations . | . . . Martial Activations . | . . . Shielding Activations . | . . . Robots Disrupted . | . . . Combat Hostiles . | . . . Robots Corrupted . | . . . Combat Hostiles . | . . . Parts Fried . | . . . Impact Corruptions . | . . . Robots Melted . | . . . Combat Hostiles . | . . . Parts Melted . | . . . Heat Transferred 475 | 25 300 150 Parts Sabotaged . | . . . Parts Stolen . | . . . Parts Stripped . | . . . Power Chain Reactions . | . . . Alert | -11 -10 -10 ------- Run | Yrd Mat Sub Maximum Alert Level . | . . . Low Security (%) 100 | 100 100 . Level 1 . | . . . Level 2 . | . . . Level 3 . | . . . Level 4 . | . . . Level 5 . | . . . High Security . | . . . Max Security . | . . . Peak Influence 139 | 5 139 . Initial . | . . . Average 50 | . 56 . Influence Increases 427 | 10 297 120 Destroy 0b10 Robot/C 340 | . 220 120 Destroy 0b10 Robot/NC 30 | 10 20 . Destroy Leader 44 | . 44 . Successful Hack 5 | . 5 . Destroy Structure 8 | . 8 . Influence Decreases 427 | 10 272 145 Entered New Map 13 | . . 13 Time Decay 412 | 10 272 130 Lost Part 2 | . . 2 Squads Dispatched 1 | . 1 . Investigation 1 | . 1 . Extermination . | . . . Reinforcement . | . . . Assault . | . . . Garrison . | . . . Intercept . | . . . Searches Triggered . | . . . Construction Impeded . | . . . Haulers Reinforced . | . . . Active Scanning Responses . | . . . Cargo Convoy Interrupts . | . . . Stealth | -11 -10 -10 --------- Run | Yrd Mat Sub Distress Signals 1 | . 1 . Communications Jammed . | . . . Distress Signals . | . . . Times Spotted 35 | . 23 12 Peak Tracking Total 6 | . 6 6 Tactical Retreats . | . . . Traps | -11 -10 -10 ------- Run | Yrd Mat Sub Traps Triggered 1 | . 1 . Indirectly . | . . . Trap Hack Attempts . | . . . Triggered . | . . . Disarmed . | . . . Reprogrammed . | . . . Reused . | . . . Traps Extracted . | . . . Installed . | . . . Triggered . | . . . Machines | -11 -10 -10 ---------- Run | Yrd Mat Sub Machines Disabled 4 | . . 4 Max in Single Turn 3 | . . 3 Machines Repaired . | . . . Machines Dismantled . | . . . Machines Sabotaged . | . . . Overloaded Fab Kills . | . . . Hacking | -11 -10 -10 --------- Run | Yrd Mat Sub Machines Accessed 4 | . 4 . Terminals 3 | . 3 . Fabricators . | . . . Repair Stations . | . . . Recycling Units 1 | . 1 . Scanalyzers . | . . . Garrison Access . | . . . Total Hacks 10 | . 10 . Successful 4 | . 4 . Failed 6 | . 6 . Catastrophic 2 | . 2 . Database Lockouts . | . . . Manual 6 | . 6 . Terminals 8 | . 8 . Fabricators . | . . . Repair Stations . | . . . Recycling Units 2 | . 2 . Scanalyzers . | . . . Garrison Access . | . . . Terminal Hacks 3 | . 3 . Prototype ID Bank 1 | . 1 . Locate Traps 1 | . 1 . Zone Layout 1 | . 1 . Fabricator Hacks . | . . . Repair Station Hacks . | . . . Recycling Unit Hacks 1 | . 1 . Report Inventory 1 | . 1 . Scanalyzer . | . . . Garrison Access Hacks . | . . . Unauthorized Hacks . | . . . Terminals . | . . . Fabricators . | . . . Repair Stations . | . . . Recycling Units . | . . . Scanalyzers . | . . . Garrison Access . | . . . Data Cores Recovered . | . . . Used . | . . . Hacking Detections 4 | . 4 . Full Trace Events . | . . . Feedback Events . | . . . Feedback Blocked . | . . . Robot Schematics Acquired . | . . . Robots Built . | . . . Authchips . | . . . Time . | . . . Total Robot Build Rating . | . . . Part Schematics Acquired . | . . . Parts Built . | . . . Authchips . | . . . Time . | . . . Total Part Build Rating . | . . . Parts Repaired . | . . . Time . | . . . Parts Recycled . | . . . Recycled Matter . | . . . Retrieved Matter . | . . . Retrieved Components . | . . . Parts Scanalyzed . | . . . Part Schematics Acquired . | . . . Parts Damaged . | . . . Bothacking | -11 -10 -10 ------------ Run | Yrd Mat Sub Used RIF Installer . | . . . Robots Hacked . | . . . Non-combat . | . . . Combat . | . . . Robot Hacks Applied . | . . . Relay Couplers Released . | . . . Fabnet Peak Effective % . | . . . Robots Rewired . | . . . Allies Hacked . | . . . Hacks Repelled . | . . . Allies | -11 -10 -10 -------- Run | Yrd Mat Sub Total Allies . | . . . Largest Group . | . . . Highest-Rated Group . | . . . Highest-Rated Ally . | . . . Total Orders . | . . . Ally Attacks . | . . . Total Damage . | . . . Kills . | . . . Allies Corrupted . | . . . Allies Melted . | . . . Intel | -11 -10 -10 ------- Run | Yrd Mat Sub Active Infowar (turns) 1717 | 32 989 696 Seismic 1717 | 32 989 696 Robot Analysis Total . | . . . Derelict Logs Recovered . | . . . Drone Launches . | . . . Drone Recoveries . | . . . Exploration | -11 -10 -10 ------------- Run | Yrd Mat Sub Turns Passed 2141 | 110 989 1042 Spaces Moved 1050 | 53 528 469 Core 9 | 9 . . Treads 1041 | 44 528 469 Legs . | . . . Wheels . | . . . Hover . | . . . Flight . | . . . Fastest Speed 50 | 50 160 160 Average Speed 159 | 141 160 160 Slowest Speed 160 | 160 160 160 Overloaded Moves . | . . . Propulsion Burnouts . | . . . Robots Hopped . | . . . Potential Cave-ins . | . . . Cave-ins Triggered . | . . . Exploration Rate (%) 46 | 6 97 36 Regions Visited 2 Branch Regions 1 Pre-discovered Areas . | . . . Known Exits Taken . | . . . Unknown Exits Taken 2 | 1 1 . Scrap Searched . | . . . Spaces Dug 5 | . . 5 Terrain Destroyed 31 | . 7 24 Melee . | . . . Projectile . | . . . AOE 31 | . 7 24 Terrain Rammed . | . . . Walls Destroyed . | . . . Machines Disabled . | . . . Actions | -11 -10 -10 --------- Run | Yrd Mat Sub Total 1344 | 80 623 641 Wait 110 | 12 35 63 Move 1049 | 53 527 469 Hop . | . . . Pick Up 22 | 6 11 5 Fast Attach 10 | 7 1 2 Attach 5 | . . 5 Detach 1 | . . 1 Swap 21 | . 4 17 Drop 14 | . 12 2 Fire 108 | 2 29 77 Melee . | . . . Ram . | . . . Kick . | . . . Crush 4 | . 4 . Escape Stasis . | . . . Rewire . | . . . Trap . | . . . Miscellaneous . | . . . Route ------- -11/Scrapyard -10/Materials (discovered 6 exits: [*Mat x3] / [*Min x2] / [*Sub]) -10/Subcaves (discovered 1 exit: [*Rec]) History --------- Turn | Location | Event 15 | -11/Scrapyard | Discovered new exit (range 15) 111 | -11/Scrapyard | Entered Materials 235 | -10/Materials | Discovered new exit (range 10) 338 | -10/Materials | Build established: Mutant 468 | -10/Materials | Discovered new exit (range 12) 673 | -10/Materials | Discovered new exit (range 16) 896 | -10/Materials | Discovered new exit (range 7) 903 | -10/Materials | Discovered new exit (range 8) 1090 | -10/Materials | Discovered new exit (range 7) 1100 | -10/Materials | Entered Subcaves 1101 | -10/Subcaves | Approached by a straggling Scientist 1102 | -10/Subcaves | Discovered new exit (range 11) 1348 | -10/Subcaves | Ambushed by Subdwellers from Twisted Machinery 1390 | -10/Subcaves | Core integrity fell below 50% 1432 | -10/Subcaves | Lost 3 parts (1p2n) 1433 | -10/Subcaves | Shifting Twisted Machinery released Spk. Treads 1435 | -10/Subcaves | Shifting Twisted Machinery released Sub. Machine Gun 1697 | -10/Subcaves | Build established: Scavenger-Mutant 2127 | -10/Subcaves | Core integrity fell below 20% 2142 | -10/Subcaves | Destroyed by ZN-L43(R) with Subdweller Machine Gun Last Messages --------------- 01741_ Switching to secondary target: 2L-3XI(R). 01743_ Lgt. Treads destroyed. 01748_ 2L-3XI(R) affixes Scrap Shield Fragment to Scrap Shield. 01755_ Lgt. Armor Plating destroyed. 01758_ 2L-3XI(R) destroyed. 01761_ Acquired 35 matter. 01762_ Acquired 44 matter. 01765_ Acquired Sub. Machine Gun. 01872_ Acquired Sub. Laser. 01889_ Acquired 10 matter. 01970_ Critical hit (Destroy). 01970_ Sub. Machine Gun destroyed. 01972_ EA-U82(R) destroyed. 01976_ Acquired 45 matter. 01979_ Acquired Assault Rifle. 02054_ OF-G9Y(R) destroyed. 02058_ Acquired 33 matter. 02129_ OX-INY(R) destroyed. 02132_ ZN-L43(R) suffers critical hit (Destroy). 02139_ ZN-L43(R) affixes Scrap Shield Fragment to Scrap Shield. Map ----- +----------------------------------------------------+ | ?????????????????????????????????????????????????? | | ?????????????????????????????????????????????????? | | ?????????????????????????????????????????????????? | | ?????????????????????????????????????????????????? | | ?????????????????????????????????????????????????? | | ?????????????????????????????????????????????????? | | ?????????????????????????????????????????????????? | | ?????????????????????????????????????????????????? | | ?????????????????????????????????????????????????? | | ?????????????????????????????????????????????????? | | ?????????????????????????????????????????????????? | | ?????????????????????????????????????????????????? | | ?????????????????????????????##########??????????? | | ???????????????????????##????#""""" ""#?####?????? | | ??????????????????????## ???## """" #### ##????? | | ???????????????######## #### "" """ # # " #???## | | ??????????????## ### """ " "#??## | | ??????????????# ####! "" " """ #### | | ???????????????????# # "# # ####""" ## | | ?????????????????### " !"###??##" * | | ??????????????" ## ##?????#" & | | ?????????????? " ###"#??????# | | ????????????? " #?###??????####### | | ??????????????""" ##???????????????# | | ???????????? ! ##??????????????# | | ?????????????# ###@ R%* #??????????????## | | ?????????????## ##??##### ##??????????????#" | | ??????????????## #???????## #??????????????## | | ???????????????## ???????## #???????????????# | | ????????????????# ????????# #???????????????? | | ????????????????#?????????# ##???????????????? | | ????????????????????????? ##????????????????# | | ???????????????????????# #????????????????## | | ??????????????????????# ????????????????# | | ?????????????????????# ## #????????????????# | | ?????????????????????# #?#####????????????????# | | ?????????????????????# ???????????????????????# | | ???????????????????? ????????????????????????# | | ??????????????????? ????????????????????????# | | ?????????????????? ?????????????????????????# | | ?????????????????? ??????????????????????????## | | ???????????????????? ????????????????????????????? | | ?????????????????????????????????????????????????? | | ?????????????????????????????????????????????????? | | ?????????????????????????????????????????????????? | | ????????????????????????????????????????????????# | | ????????????????????????????????????????????????# | | ???????????????????????????????????????????????# | | ???????????????????????????????????????????????# | | ???????????????????????????????????????????????### | +----------------------------------------------------+ Best States ------------- Heat Dissipation 25 Energy Generation 10 Energy Capacity 250 Matter Stores 300 Matter Capacity 300 Sight Range 16 Terrain Scan Density 10 Armor Coverage 150 Propulsion Shielding 33 Evasion (%) 50 Recoil Reduction 2 Item Schematics ----------------- None Robot Schematics ------------------ None Fabricated ------------ Nothing Repaired ---------- Nothing Alien Tech Used ----------------- None Achievements -------------- None Challenges ------------ None Game ------ Seed FieldthrustVisualMace Manual? 0 Play Time 00:16:13 Cumulative 515.9 hours Start 2025.07.12 @ 20:31:31 End 2025.07.12 @ 20:46:35 Sessions 1 Manual Loads 0 Difficulty Rogue Special Mode None Game No. 355 Rogue 355 Adventurer 0 Explorer 0 Win Type - Total 48 Types 41/0/5/2/0/0/0/0/0/0 Lore% 84 Gallery% 80 Achievement% 73 Wizard Run 0 Options --------- Layout 0 ASCII 0 Keyboard 1 Movement Numpad Keybinds 0 Fullscreen 2 Font 24/Tamsyn Map View 76x50 Zoom Use 0% Tactical HUD 1 Map Filters NONE Filters NONE Steam 1 RUN: 33a750e9-4791-42bd-985d-586fdbea62dd